fUST/lending_fUST_20240630
["ID","MTS","AMOUNT","RATE_DAILY","PERIOD"]
[330686639,1719711043549,-500.0,0.00016438,2]
[330686643,1719711043558,-312.49740501,0.00016438,2]
[330686647,1719711043571,-835.38,0.00016438,2]
[330686650,1719711043579,-500.0,0.00016438,2]
[330686653,1719711043588,-1351.94,0.00016438,2]
[330686657,1719711043597,-510.19,0.00016438,2]
[330686661,1719711043607,-500.0,0.00016438,2]
[330686666,1719711043616,-506.56,0.00016438,2]
[330686669,1719711043625,-519.90678711,0.00016438,2]
[330686673,1719711043635,-623.23240016,0.00016438,2]
[330686677,1719711043646,-1948.09,0.00016438,2]
[330686680,1719711043655,-610.22,0.00016438,2]
[330686683,1719711043664,-500.0,0.00016438,2]
[330686686,1719711043673,-500.0,0.00016438,2]
[330686692,1719711043696,-3645.27,0.00016438,2]
[330686695,1719711043713,-500.0,0.00016438,2]
[330686698,1719711043733,-981.86,0.00016438,2]
[330686702,1719711043754,-500.0,0.00016438,2]
[330686705,1719711043774,-1839.8,0.00016438,2]
[330686708,1719711043793,-7060.71,0.00016438,2]
[330686710,1719711043809,-500.0,0.00016438,2]
[330686713,1719711043822,-1004.06,0.00016438,2]
[330686716,1719711043841,-600.08,0.00016438,2]
[330686719,1719711043862,-754.29,0.00016438,2]
[330686722,1719711043874,-500.0,0.00016438,2]
[330686724,1719711043893,-500.0,0.00016438,2]
[330686727,1719711043909,-884.05,0.00016438,2]
[330686729,1719711043926,-786.98,0.00016438,2]
[330686732,1719711043941,-500.0,0.00016438,2]
[330686734,1719711043955,-500.0,0.00016438,2]
[330686737,1719711043970,-631.55,0.00016438,2]
[330686740,1719711043985,-500.0,0.00016438,2]
[330686742,1719711044000,-500.0,0.00016438,2]
[330686745,1719711044014,-500.0,0.00016438,2]
[330686747,1719711044031,-500.0,0.00016438,2]
[330686750,1719711044046,-599.05,0.00016438,2]
[330686753,1719711044060,-500.0,0.00016438,2]
[330686755,1719711044075,-500.0,0.00016438,2]
[330686758,1719711044090,-500.0,0.00016438,2]
[330686760,1719711044104,-22695.64,0.00016438,2]
[330686763,1719711044118,-500.0,0.00016438,2]
[330686765,1719711044133,-500.0,0.00016438,2]
[330686768,1719711044148,-500.0,0.00016438,2]
[330686771,1719711044163,-500.0,0.00016438,2]
[330686773,1719711044178,-500.0,0.00016438,2]
[330686776,1719711044192,-500.0,0.00016438,2]
[330686778,1719711044207,-500.0,0.00016438,2]
[330686781,1719711044221,-500.0,0.00016438,2]
[330686783,1719711044237,-1051.37,0.00016438,2]
[330686786,1719711044252,-500.0,0.00016438,2]
[330686789,1719711044267,-500.0,0.00016438,2]
[330686791,1719711044282,-500.0,0.00016438,2]
[330686794,1719711044296,-500.0,0.00016438,2]
[330686796,1719711044310,-504.53820613,0.00016438,2]
[330686799,1719711044324,-1500.34,0.00016438,2]
[330686801,1719711044339,-15224.13,0.00016438,2]
[330686804,1719711044354,-628.64,0.00016438,2]
[330686806,1719711044368,-1796.98,0.00016438,2]
[330686809,1719711044383,-500.0,0.00016438,2]
[330686812,1719711044398,-500.0,0.00016438,2]
[330686814,1719711044412,-906.58,0.00016438,2]
[330686817,1719711044426,-500.0,0.00016438,2]
[330686819,1719711044442,-1898.02,0.00016438,2]
[330686822,1719711044457,-572.18,0.00016438,2]
[330686824,1719711044468,-1487.78,0.00016438,2]
[330686826,1719711044477,-500.0,0.00016438,2]
[330686828,1719711044487,-500.0,0.00016438,2]
[330686830,1719711044497,-500.0,0.00016438,2]
[330686846,1719711044613,-500.0,0.00016438,2]
[330686850,1719711044673,-500.0,0.00016438,2]
[330686852,1719711044687,-3773.21,0.00016438,2]
[330686854,1719711044697,-500.0,0.00016438,2]
[330686856,1719711044706,-500.0,0.00016438,2]
[330686858,1719711044715,-500.0,0.00016438,2]
[330686860,1719711044725,-500.0,0.00016438,2]
[330686862,1719711044735,-17440.5,0.00016438,2]
[330686864,1719711044744,-523.31886951,0.00016438,2]
[330686866,1719711044753,-644.95,0.00016438,2]
[330686868,1719711044762,-500.0,0.00016438,2]
[330686870,1719711044773,-500.0,0.00016438,2]
[330686872,1719711044782,-500.0,0.00016438,2]
[330686874,1719711044791,-909.52,0.00016438,2]
[330686876,1719711044800,-1993.2,0.00016438,2]
[330686878,1719711044810,-500.0,0.00016438,2]
[330686880,1719711044819,-1170.68,0.00016438,2]
[330686882,1719711044828,-3476.85,0.00016438,2]
[330686884,1719711044838,-873.14,0.00016438,2]
[330686886,1719711044847,-1656.37,0.00016438,2]
[330686888,1719711044856,-500.0,0.00016438,2]
[330686890,1719711044865,-5568.9,0.00016438,2]
[330686892,1719711044875,-1437.5,0.00016438,2]
[330686894,1719711044888,-500.0,0.00016438,2]
[330686896,1719711044898,-500.0,0.00016438,2]
[330686898,1719711044907,-13550.41174524,0.00016438,2]
[330686955,1719711045440,-1096.09827437,0.00016438,2]
[330691019,1719711087388,175.19582227,0.00014999,2]
[330691827,1719711096450,154.97856481,0.00014999,2]
[330692499,1719711138468,155.00600729,0.00014999,2]
[330692500,1719711148399,155.20568448,0.00014999,2]
[330692501,1719711154117,155.09085328,0.00014999,2]
[330692502,1719711156718,155.01416632,0.00014999,2]
[330692503,1719711166926,177.62186182,0.00014999,2]
[330692504,1719711194442,1107.64317955,0.00015,2]
[330692505,1719711195428,6499.09047162,0.00014998,2]
[330692506,1719711200997,2049.58123136,0.00014999,2]
[330692507,1719711211662,155.04627002,0.00014999,2]
[330692508,1719711230036,293.86256218,0.00014999,2]
[330692513,1719711439907,7234.07750944,0.0001,2]
[330692516,1719711564639,155.41608479,0.00012121,2]
[330692517,1719711574264,270.0,0.00025999,120]
[330692519,1719711589934,2136.91600923,0.00012121,2]
[330692520,1719711598225,151.63,0.0001501,2]
[330692536,1719711965871,502.0,0.00026,120]
[330692584,1719712232118,-202.5096579,0.0001536,2]
[330692585,1719712232127,-623.4141353,0.00016173,2]
[330692586,1719712232141,-1045.92914595,0.00016255,2]
[330692587,1719712232154,-140.33875852,0.00016255,2]
[330692588,1719712232164,-4959.19971428,0.00016338,2]
[330692589,1719712232173,-850.44708598,0.00016338,2]
[330692590,1719712232184,-4456.07919648,0.00016338,2]
[330692631,1719712238086,-786.90428379,0.00016338,2]
[330692633,1719712238096,-1679.99563744,0.00016338,2]
[330692635,1719712238106,-5286.34479944,0.00016431,2]
[330692637,1719712238116,-25553.94,0.00016438,2]
[330692639,1719712238126,-780.93,0.00016438,2]
[330692641,1719712238136,-500.0,0.00016438,2]
[330692643,1719712238146,-505.39705489,0.00016438,2]
[330692645,1719712238155,-500.0,0.00016438,2]
[330692647,1719712238165,-500.0,0.00016438,2]
[330692649,1719712238175,-670.14,0.00016438,2]
[330692651,1719712238184,-756.78,0.00016438,2]
[330692653,1719712238194,-548.5553125,0.00016438,2]
[330692655,1719712238203,-503.63360263,0.00016438,2]
[330692657,1719712238212,-2025.83,0.00016438,2]
[330692659,1719712238222,-502.24081601,0.00016438,2]
[330692661,1719712238232,-509.45315943,0.00016438,2]
[330692663,1719712238241,-500.0,0.00016438,2]
[330692665,1719712238251,-1021.3,0.00016438,2]
[330692667,1719712238261,-500.0,0.00016438,2]
[330692669,1719712238270,-500.0,0.00016438,2]
[330692671,1719712238281,-500.0,0.00016438,2]
[330692674,1719712238292,-509.88658208,0.00016438,2]
[330692676,1719712238302,-962.72,0.00016438,2]
[330692678,1719712238311,-754.12,0.00016438,2]
[330692680,1719712238322,-500.0,0.00016438,2]
[330692681,1719712238332,-843.42,0.00016438,2]
[330692683,1719712238342,-614.86170782,0.00016438,2]
[330692685,1719712238352,-503.30986264,0.00016438,2]
[330692703,1719712238510,-603.47,0.00016438,2]
[330692705,1719712238519,-275.56456711,0.00016438,2]
[330692707,1719712238529,-500.0,0.00016438,2]
[330692709,1719712238546,-605.53090476,0.00016438,2]
[330692711,1719712238556,-508.10731312,0.00016438,2]
[330692713,1719712238569,-505.69048026,0.00016438,2]
[330692715,1719712238579,-352.42377064,0.00016438,2]
[330692717,1719712238589,-501.49888466,0.00016438,2]
[330692719,1719712238599,-679.12,0.00016438,2]
[330692721,1719712238609,-500.0,0.00016438,2]
[330692723,1719712238618,-500.0,0.00016438,2]
[330692725,1719712238628,-500.0,0.00016438,2]
[330692727,1719712238641,-505.0772666,0.00016438,2]
[330692729,1719712238651,-508.18186603,0.00016438,2]
[330692731,1719712238663,-505.61597246,0.00016438,2]
[330692733,1719712238673,-500.0,0.00016438,2]
[330692735,1719712238683,-504.34795031,0.00016438,2]
[330692737,1719712238692,-500.0,0.00016438,2]
[330692739,1719712238702,-500.0,0.00016438,2]
[330692741,1719712238711,-500.0,0.00016438,2]
[330692743,1719712238720,-618.94,0.00016438,2]
[330692745,1719712238730,-1665.49,0.00016438,2]
[330692747,1719712238744,-289.60180545,0.00016438,2]
[330692749,1719712238754,-500.0,0.00016438,2]
[330692751,1719712238764,-503.58178285,0.00016438,2]
[330692753,1719712238774,-1682.43,0.00016438,2]
[330692755,1719712238786,-504.62852629,0.00016438,2]
[330692757,1719712238796,-501.67703648,0.00016438,2]
[330692759,1719712238806,-500.0,0.00016438,2]
[330692761,1719712238815,-500.0,0.00016438,2]
[330692763,1719712238827,-799.22,0.00016438,2]
[330692765,1719712238836,-500.0,0.00016438,2]
[330692767,1719712238845,-500.0,0.00016438,2]
[330692769,1719712238855,-900.33,0.00016438,2]
[330692771,1719712238864,-502.02054483,0.00016438,2]
[330692773,1719712238873,-503.71505261,0.00016438,2]
[330692775,1719712238885,-501.3911697,0.00016438,2]
[330692777,1719712238896,-503.04683178,0.00016438,2]
[330692779,1719712238908,-502.53299136,0.00016438,2]
[330692781,1719712238918,-500.0,0.00016438,2]
[330692783,1719712238928,-494.74240555,0.00016438,2]
[330692785,1719712238938,-503.17665852,0.00016438,2]
[330692787,1719712238948,-777.32,0.00016438,2]
[330692789,1719712238957,-615.33,0.00016438,2]
[330692791,1719712238966,-504.76597626,0.00016438,2]
[330692793,1719712238975,-500.0,0.00016438,2]
[330692795,1719712238985,-500.74695994,0.00016438,2]
[330692797,1719712238995,-500.0,0.00016438,2]
[330692799,1719712239005,-535.86,0.00016438,2]
[330692801,1719712239015,-754.77,0.00016438,2]
[330692803,1719712239026,-526.03447987,0.00016438,2]
[330692805,1719712239036,-500.0,0.00016438,2]
[330692807,1719712239046,-505.32837213,0.00016438,2]
[330692809,1719712239057,-500.0,0.00016438,2]
[330692811,1719712239067,-1069.8,0.00016438,2]
[330692813,1719712239078,-535.0,0.00016438,2]
[330692815,1719712239089,-15232.92,0.00016438,2]
[330692817,1719712239100,-501.9053898,0.00016438,2]
[330692819,1719712239110,-682.84,0.00016438,2]
[330692821,1719712239120,-621.6,0.00016438,2]
[330692823,1719712239130,-500.0,0.00016438,2]
[330692825,1719712239143,-502.60302224,0.00016438,2]
[330692827,1719712239153,-1171.29,0.00016438,2]
[330692828,1719712239164,-501.89035389,0.00016438,2]
[330692830,1719712239174,-503.80818863,0.00016438,2]
[330692832,1719712239184,-507.55763966,0.00016438,2]
[330692835,1719712239195,-500.0,0.00016438,2]
[330692837,1719712239205,-501.42080193,0.00016438,2]
[330692839,1719712239215,-502.37291909,0.00016438,2]
[330692840,1719712239224,-500.0,0.00016438,2]
[330692843,1719712239235,-500.0,0.00016438,2]
[330692844,1719712239245,-500.0,0.00016438,2]
[330692847,1719712239255,-792.78,0.00016438,2]
[330692848,1719712239265,-517.62036419,0.00016438,2]
[330692850,1719712239276,-504.25480397,0.00016438,2]
[330692852,1719712239287,-1225.54,0.00016438,2]
[330692854,1719712239297,-500.0,0.00016438,2]
[330692856,1719712239306,-500.0,0.00016438,2]
[330692858,1719712239316,-500.0,0.00016438,2]
[330692860,1719712239326,-500.0,0.00016438,2]
[330692862,1719712239336,-1939.98,0.00016438,2]
[330692864,1719712239346,-500.0,0.00016438,2]
[330692866,1719712239356,-500.0,0.00016438,2]
[330692868,1719712239366,-2152.91,0.00016438,2]
[330692870,1719712239377,-508.39491225,0.00016438,2]
[330692872,1719712239388,-504.43843048,0.00016438,2]
[330692874,1719712239398,-660.09,0.00016438,2]
[330692876,1719712239408,-501.16079115,0.00016438,2]
[330692879,1719712239418,-431.99558573,0.00016438,2]
[330692881,1719712239428,-1381.85,0.00016438,2]
[330692883,1719712239438,-500.0,0.00016438,2]
[330692885,1719712239448,-500.0,0.00016438,2]
[330692886,1719712239457,-3168.39,0.00016438,2]
[330692888,1719712239468,-501.6840721,0.00016438,2]
[330692891,1719712239478,-778.32,0.00016438,2]
[330692893,1719712239488,-503.80395665,0.00016438,2]
[330692895,1719712239498,-501.77301467,0.00016438,2]
[330692896,1719712239507,-502.94664777,0.00016438,2]
[330692898,1719712239517,-2593.14,0.00016438,2]
[330692900,1719712239527,-500.0,0.00016438,2]
[330692903,1719712239548,-502.51886027,0.00016438,2]
[330692904,1719712239558,-505.58111828,0.00016438,2]
[330692906,1719712239568,-502.86841912,0.00016438,2]
[330692908,1719712239577,-1522.99,0.00016438,2]
[330692911,1719712239588,-523.21322067,0.00016438,2]
[330692913,1719712239597,-538.00787098,0.00016438,2]
[330692915,1719712239607,-500.0,0.00016438,2]
[330692916,1719712239616,-584.87,0.00016438,2]
[330692919,1719712239625,-500.0,0.00016438,2]
[330692920,1719712239636,-500.0,0.00016438,2]
[330692923,1719712239646,-3051.39,0.00016438,2]
[330692925,1719712239656,-501.08655905,0.00016438,2]
[330692926,1719712239666,-522.44,0.00016438,2]
[330692929,1719712239677,-500.0,0.00016438,2]
[330692931,1719712239688,-11596.27,0.00016438,2]
[330692933,1719712239698,-501.97196758,0.00016438,2]
[330692935,1719712239707,-500.0,0.00016438,2]
[330692937,1719712239717,-500.0,0.00016438,2]
[330692939,1719712239727,-742.58,0.00016438,2]
[330692941,1719712239737,-600.4,0.00016438,2]
[330692943,1719712239746,-918.59,0.00016438,2]
[330692945,1719712239760,-12451.97,0.00016438,2]
[330692947,1719712239770,-502.72826924,0.00016438,2]
[330692949,1719712239780,-506.82,0.00016438,2]
[330692950,1719712239790,-595.02,0.00016438,2]
[330692953,1719712239800,-500.0,0.00016438,2]
[330692954,1719712239809,-1021.79,0.00016438,2]
[330692956,1719712239819,-633.49,0.00016438,2]
[330692959,1719712239832,-601.3,0.00016438,2]
[330692961,1719712239842,-500.0,0.00016438,2]
[330692962,1719712239851,-3739.82,0.00016438,2]
[330692964,1719712239861,-909.73,0.00016438,2]
[330692965,1719712239871,-886.85,0.00016438,2]
[330692967,1719712239881,-508.89228459,0.00016438,2]
[330692969,1719712239891,-500.0,0.00016438,2]
[330692971,1719712239901,-500.0,0.00016438,2]
[330692973,1719712239911,-500.0,0.00016438,2]
[330692975,1719712239921,-1457.47,0.00016438,2]
[330692977,1719712239931,-2730.97,0.00016438,2]
[330692980,1719712239949,-500.0,0.00016438,2]
[330692982,1719712239961,-500.0,0.00016438,2]
[330692984,1719712239971,-500.0,0.00016438,2]
[330692987,1719712239982,-500.0,0.00016438,2]
[330692988,1719712239992,-500.0,0.00016438,2]
[330692991,1719712240003,-283.41994305,0.00016438,2]
[330692993,1719712240013,-500.0,0.00016438,2]
[330692995,1719712240024,-580.06,0.00016438,2]
[330692997,1719712240034,-500.0,0.00016438,2]
[330692999,1719712240045,-500.0,0.00016438,2]
[330693001,1719712240055,-500.0,0.00016438,2]
[330693003,1719712240065,-500.0,0.00016438,2]
[330693005,1719712240075,-525.72491005,0.00016438,2]
[330693007,1719712240084,-3569.34,0.00016438,2]
[330693009,1719712240094,-500.0,0.00016438,2]
[330693011,1719712240104,-500.0,0.00016438,2]
[330693013,1719712240115,-500.0,0.00016438,2]
[330693015,1719712240125,-500.0,0.00016438,2]
[330693017,1719712240136,-500.0,0.00016438,2]
[330693019,1719712240146,-1656.37,0.00016438,2]
[330693021,1719712240156,-500.0,0.00016438,2]
[330693023,1719712240167,-982.52,0.00016438,2]
[330693025,1719712240176,-2504.72,0.00016438,2]
[330693027,1719712240186,-502.3572383,0.00016438,2]
[330693028,1719712240196,-513.57,0.00016438,2]
[330693029,1719712240206,-507.0192636,0.00016438,2]
[330693030,1719712240216,-500.0,0.00016438,2]
[330693031,1719712240226,-500.0,0.00016438,2]
[330693032,1719712240369,-500.0,0.00016438,2]
[330693033,1719712240378,-500.0,0.00016438,2]
[330693034,1719712240388,-711.89,0.00016438,2]
[330693035,1719712240398,-500.0,0.00016438,2]
[330693036,1719712240407,-500.0,0.00016438,2]
[330693037,1719712240417,-500.0,0.00016438,2]
[330693038,1719712240426,-500.0,0.00016438,2]
[330693039,1719712240436,-500.0,0.00016438,2]
[330693040,1719712240445,-521.01903347,0.00016438,2]
[330693041,1719712240454,-500.0,0.00016438,2]
[330693042,1719712240463,-480.4356334,0.00016438,2]
[330693043,1719712240472,-1888.27,0.00016438,2]
[330693044,1719712240482,-500.0,0.00016438,2]
[330693045,1719712240491,-500.0,0.00016438,2]
[330693046,1719712240500,-500.15,0.00016438,2]
[330693047,1719712240509,-500.0,0.00016438,2]
[330693048,1719712240519,-500.0,0.00016438,2]
[330693050,1719712240548,-500.0,0.00016438,2]
[330693052,1719712240557,-1378.42,0.00016438,2]
[330693054,1719712240567,-500.0,0.00016438,2]
[330693057,1719712240576,-500.0,0.00016438,2]
[330693059,1719712240586,-500.0,0.00016438,2]
[330693060,1719712240595,-500.0,0.00016438,2]
[330693062,1719712240605,-500.0,0.00016438,2]
[330693065,1719712240614,-500.0,0.00016438,2]
[330693066,1719712240624,-500.0,0.00016438,2]
[330693068,1719712240633,-500.0,0.00016438,2]
[330693071,1719712240642,-188.09167626,0.00016438,2]
[330693073,1719712240652,-500.0,0.00016438,2]
[330693074,1719712240661,-500.0,0.00016438,2]
[330693076,1719712240671,-1444.04,0.00016438,2]
[330693079,1719712240681,-500.0,0.00016438,2]
[330693080,1719712240690,-500.0,0.00016438,2]
[330693083,1719712240699,-500.0,0.00016438,2]
[330693085,1719712240709,-500.0,0.00016438,2]
[330693086,1719712240719,-500.0,0.00016438,2]
[330693088,1719712240728,-596.87,0.00016438,2]
[330693090,1719712240739,-500.0,0.00016438,2]
[330693093,1719712240751,-500.0,0.00016438,2]
[330693094,1719712240760,-500.0,0.00016438,2]
[330693096,1719712240770,-500.0,0.00016438,2]
[330693098,1719712240780,-157.74769732,0.00016438,2]
[330693100,1719712240791,-303.37565027,0.00016438,2]
[330693102,1719712240800,-530.93,0.00016438,2]
[330693104,1719712240810,-502.47533666,0.00016438,2]
[330693106,1719712240819,-501.32122998,0.00016438,2]
[330693108,1719712240830,-635.80447038,0.00016438,2]
[330693110,1719712240839,-500.0,0.00016438,2]
[330693112,1719712240849,-521.84,0.00016438,2]
[330693114,1719712240858,-963.57,0.00016438,2]
[330693116,1719712240867,-1500.42,0.00016438,2]
[330693118,1719712240876,-1444.8,0.00016438,2]
[330693120,1719712240886,-500.0,0.00016438,2]
[330693122,1719712240896,-500.0,0.00016438,2]
[330693124,1719712240905,-387.67568367,0.00016438,2]
[330693126,1719712240914,-500.0,0.00016438,2]
[330693128,1719712240923,-666.67,0.00016438,2]
[330693130,1719712240932,-1199.94,0.00016438,2]
[330693132,1719712240941,-543.63,0.00016438,2]
[330693134,1719712240950,-500.0,0.00016438,2]
[330693135,1719712240959,-1437.5,0.00016438,2]
[330693137,1719712240969,-2534.83,0.00016438,2]
[330693139,1719712240978,-565.48491466,0.00016438,2]
[330693141,1719712240987,-500.0,0.00016438,2]
[330693143,1719712240997,-873.14,0.00016438,2]
[330693145,1719712241007,-500.0,0.00016438,2]
[330693147,1719712241016,-1166.12,0.00016438,2]
[330693149,1719712241026,-500.0,0.00016438,2]
[330693151,1719712241035,-518.6968974,0.00016438,2]
[330693153,1719712241044,-3084.25,0.00016438,2]
[330693155,1719712241054,-500.0,0.00016438,2]
[330693157,1719712241063,-500.0,0.00016438,2]
[330693159,1719712241073,-2964.06,0.00016438,2]
[330693161,1719712241082,-500.0,0.00016438,2]
[330693163,1719712241091,-540.56,0.00016438,2]
[330693165,1719712241101,-508.94061713,0.00016438,2]
[330693167,1719712241110,-510.37990973,0.00016438,2]
[330693169,1719712241119,-676.56,0.00016438,2]
[330693171,1719712241128,-3754.41,0.00016438,2]
[330693173,1719712241139,-766.92,0.00016438,2]
[330693175,1719712241149,-500.0,0.00016438,2]
[330693177,1719712241158,-500.0,0.00016438,2]
[330693179,1719712241167,-1920.7,0.00016438,2]
[330693181,1719712241177,-787.38,0.00016438,2]
[330693182,1719712241186,-1830.24,0.00016438,2]
[330693185,1719712241195,-501.72680499,0.00016438,2]
[330693186,1719712241205,-500.0,0.00016438,2]
[330693189,1719712241214,-835.69,0.00016438,2]
[330693191,1719712241223,-505.0003678,0.00016438,2]
[330693193,1719712241233,-290.16226717,0.00016438,2]
[330693194,1719712241243,-506.15870229,0.00016438,2]
[330693196,1719712241252,-500.0,0.00016438,2]
[330693199,1719712241262,-500.0,0.00016438,2]
[330693201,1719712241271,-500.0,0.00016438,2]
[330693202,1719712241280,-500.0,0.00016438,2]
[330693205,1719712241291,-628.96,0.00016438,2]
[330693207,1719712241300,-501.61298699,0.00016438,2]
[330693209,1719712241310,-610.51,0.00016438,2]
[330693210,1719712241320,-501.29030991,0.00016438,2]
[330693212,1719712241330,-500.0,0.00016438,2]
[330693214,1719712241339,-500.0,0.00016438,2]
[330693216,1719712241348,-500.0,0.00016438,2]
[330693218,1719712241358,-500.0,0.00016438,2]
[330693220,1719712241368,-508.45257702,0.00016438,2]
[330693222,1719712241378,-501.5096367,0.00016438,2]
[330693224,1719712241389,-501.00203503,0.00016438,2]
[330693226,1719712241398,-627.36491239,0.00016438,2]
[330693228,1719712241408,-503.84856482,0.00016438,2]
[330693230,1719712241418,-504.87921183,0.00016438,2]
[330693232,1719712241427,-505.11533947,0.00016438,2]
[330693234,1719712241436,-666.13,0.00016438,2]
[330693236,1719712241446,-500.0,0.00016438,2]
[330693238,1719712241456,-509.34,0.00016438,2]
[330693241,1719712241466,-500.0,0.00016438,2]
[330693242,1719712241475,-500.0,0.00016438,2]
[330693244,1719712241484,-609.03,0.00016438,2]
[330693246,1719712241494,-500.0,0.00016438,2]
[330693248,1719712241503,-500.0,0.00016438,2]
[330693250,1719712241513,-500.0,0.00016438,2]
[330693252,1719712241522,-500.0,0.00016438,2]
[330693254,1719712241532,-502.35257362,0.00016438,2]
[330693257,1719712241544,-505.05303332,0.00016438,2]
[330693258,1719712241554,-524.30153872,0.00016438,2]
[330693260,1719712241563,-808.99,0.00016438,2]
[330693262,1719712241573,-500.0,0.00016438,2]
[330693265,1719712241582,-500.0,0.00016438,2]
[330693267,1719712241592,-320.90698252,0.00016438,2]
[330693269,1719712241602,-500.0,0.00016438,2]
[330693271,1719712241611,-500.0,0.00016438,2]
[330693272,1719712241620,-500.0,0.00016438,2]
[330693275,1719712241630,-500.0,0.00016438,2]
[330693277,1719712241640,-638.08,0.00016438,2]
[330693279,1719712241649,-502.76565142,0.00016438,2]
[330693281,1719712241659,-500.0,0.00016438,2]
[330693283,1719712241669,-930.38,0.00016438,2]
[330693284,1719712241678,-500.0,0.00016438,2]
[330693287,1719712241688,-500.0,0.00016438,2]
[330693288,1719712241697,-500.0,0.00016438,2]
[330693291,1719712241707,-502.81992494,0.00016438,2]
[330693293,1719712241719,-573.40636028,0.00016438,2]
[330693295,1719712241728,-500.0,0.00016438,2]
[330693297,1719712241738,-500.0,0.00016438,2]
[330693299,1719712241749,-500.0,0.00016438,2]
[330693300,1719712241760,-984.61,0.00016438,2]
[330693302,1719712241770,-503.25470798,0.00016438,2]
[330693304,1719712241779,-8438.16,0.00016438,2]
[330693306,1719712241790,-2509.51,0.00016438,2]
[330693308,1719712241800,-503.66349811,0.00016438,2]
[330693310,1719712241810,-509.77482491,0.00016438,2]
[330693312,1719712241819,-500.0,0.00016438,2]
[330693314,1719712241831,-503.33884486,0.00016438,2]
[330693315,1719712241840,-501.71861451,0.00016438,2]
[330693317,1719712241850,-500.0,0.00016438,2]
[330693329,1719712241952,-645.19,0.00016438,2]
[330693331,1719712241962,-500.0,0.00016438,2]
[330693332,1719712241971,-754.69,0.00016438,2]
[330693335,1719712241981,-2033.88,0.00016438,2]
[330693336,1719712241991,-500.0,0.00016438,2]
[330693338,1719712242000,-501.70799239,0.00016438,2]
[330693340,1719712242009,-503.72213045,0.00016438,2]
[330693343,1719712242020,-500.0,0.00016438,2]
[330693344,1719712242029,-502.25486013,0.00016438,2]
[330693346,1719712242039,-503.05908995,0.00016438,2]
[330693348,1719712242048,-4319.83,0.00016438,2]
[330693350,1719712242056,-46968.88,0.00016438,2]
[330693352,1719712242066,-500.0,0.00016438,2]
[330693354,1719712242075,-500.0,0.00016438,2]
[330693356,1719712242085,-1225.13,0.00016438,2]
[330693358,1719712242094,-500.0,0.00016438,2]
[330693360,1719712242103,-871.87,0.00016438,2]
[330693362,1719712242112,-663.64,0.00016438,2]
[330693364,1719712242121,-503.13922847,0.00016438,2]
[330693366,1719712242130,-504.9348097,0.00016438,2]
[330693368,1719712242142,-1949.24,0.00016438,2]
[330693370,1719712242151,-500.0,0.00016438,2]
[330693372,1719712242159,-500.0,0.00016438,2]
[330693374,1719712242170,-864.35,0.00016438,2]
[330693376,1719712242180,-5797.54,0.00016438,2]
[330693378,1719712242189,-735.96,0.00016438,2]
[330693380,1719712242199,-500.0,0.00016438,2]
[330693381,1719712242208,-501.66622579,0.00016438,2]
[330693383,1719712242218,-500.0,0.00016438,2]
[330693385,1719712242228,-500.0,0.00016438,2]
[330693387,1719712242237,-314.16453893,0.00016438,2]
[330693389,1719712242247,-500.0,0.00016438,2]